{"text_format":"1","workbook":"xlsx","n_sheets":7,"sheets":["調書１","調書２","調書３","調書３（2葉目）","任意（表彰・資格・免許他）","リスト ","集計用"],"not_rendered":{"charts":0,"images":0,"macros":0,"external_links":0,"defined_names":48,"comments":0,"pivot_tables":0},"unopened":[],"bounds":{"document_bytes":16777216,"sheet_cells":100000,"rows_first":2000,"rows_last":500,"rows_between":2000,"halvings":0,"cell_chars":16384,"cell_head_chars":4096},"cells_cut":0,"cells_raw":0,"read":"whole","date_system":"1900"}

{"sheet":"調書１","index":0,"n_rows":40,"n_cols":14,"rows_kept":40,"cut":false,"hidden":false,"merged":[[32,0,39,1],[32,4,32,7],[32,8,39,8],[32,10,32,12],[33,4,33,7],[33,10,33,12],[34,4,34,7],[34,10,34,12],[38,4,38,6],[38,10,38,12],[39,4,39,6],[39,10,39,12],[35,4,35,7],[35,10,35,12],[36,4,36,6],[36,10,36,12],[37,4,37,6],[37,10,37,12],[28,0,31,1],[28,3,28,11],[28,12,28,13],[29,3,29,11],[29,12,29,13],[30,3,30,11],[30,12,30,13],[31,3,31,11],[31,12,31,13],[22,2,22,4],[22,5,22,13],[23,0,27,1],[23,3,23,11],[23,12,23,13],[24,3,24,11],[24,12,24,13],[25,3,25,11],[25,12,25,13],[26,3,26,11],[26,12,26,13],[27,3,27,11],[27,12,27,13],[19,5,19,8],[19,9,19,10],[20,0,20,1],[20,2,21,4],[20,5,20,12],[21,0,21,1],[21,5,21,12],[16,0,16,1],[16,5,16,8],[16,9,16,10],[17,0,17,1],[17,3,19,4],[17,5,17,8],[17,9,17,10],[18,5,18,8],[18,9,18,10],[19,0,19,1],[14,0,14,1],[14,5,14,8],[14,9,14,10],[15,0,15,1],[15,5,15,8],[15,9,15,10],[12,2,12,4],[12,5,12,8],[12,9,12,10],[13,0,13,1],[13,3,13,4],[13,5,13,8],[13,9,13,10],[10,0,10,1],[10,2,11,4],[10,5,10,8],[10,9,10,10],[11,5,11,8],[11,9,11,10],[7,0,7,1],[7,3,9,4],[7,5,7,8],[7,9,7,10],[8,5,8,8],[8,9,8,10],[9,0,9,1],[9,5,9,8],[9,9,9,10],[4,0,4,1],[4,5,5,6],[4,7,4,13],[5,0,5,1],[5,7,5,13],[6,0,6,1],[6,5,6,8],[6,9,6,12],[0,0,0,13],[1,11,1,12],[2,5,2,6],[2,7,2,8],[2,9,3,10],[2,11,3,13],[3,5,3,6],[3,7,3,8]]}
["調書（１）都道府県"]
["(様式３の１)",null,null,null,null,null,null,null,null,null,null,"2025-11-01",null,"現在"]
["都道府県番号",{"$f":"IF(C4=\"北海道\",1,IF(C4=\"青森県\",2,IF(C4=\"岩手県\",3,IF(C4=\"宮城県\",4,IF(C4=\"秋田県\",5,IF(C4=\"山形県\",6,IF(C4=\"福島県\",7,IF(C4=\"茨城県\",8,IF(C4=\"栃木県\",9,IF(C4=\"群馬県\",10,IF(C4=\"埼玉県\",11,IF(C4=\"千葉県\",12,IF(C4=\"東京都\",13,IF(C4=\"神奈川県\",14,IF(C4=\"新潟県\",15,IF(C4=\"富山県\",16,IF(C4=\"石川県\",17,IF(C4=\"福井県\",18,IF(C4=\"山梨県\",19,IF(C4=\"長野県\",20,IF(C4=\"岐阜県\",21,IF(C4=\"静岡県\",22,IF(C4=\"愛知県\",23,IF(C4=\"三重県\",24,IF(C4=\"滋賀県\",25,IF(C4=\"京都府\",26,IF(C4=\"大阪府\",27,IF(C4=\"兵庫県\",28,IF(C4=\"奈良県\",29,IF(C4=\"和歌山県\",30,IF(C4=\"鳥取県\",31,IF(C4=\"島根県\",32,IF(C4=\"岡山県\",33,IF(C4=\"広島県\",34,IF(C4=\"山口県\",35,IF(C4=\"徳島県\",36,IF(C4=\"香川県\",37,IF(C4=\"愛媛県\",38,IF(C4=\"高知県\",39,IF(C4=\"福岡県\",40,IF(C4=\"佐賀県\",41,IF(C4=\"長崎県\",42,IF(C4=\"熊本県\",43,IF(C4=\"大分県\",44,IF(C4=\"宮崎県\",45,IF(C4=\"鹿児島県\",46,IF(C4=\"沖縄県\",47,\"-\")))))))))))))))))))))))))))))))))))))))))))))))","v":"-"},"推薦都道府県名","職業\n部門",null,"職種名（１）",null,"職種名（２）",null,"氏名・現就業先事業所名の外字"]
[]
["ふりがな",null,null,"性別",null,"技能・技術が\n分かるサイト等\n（HPのURLを記載）"]
["氏名"]
["生年月日",null,null,"年齢",{"$f":"IF(ISBLANK(C7),\"\",DATEDIF(C7,L2,\"Y\"))","v":""},"職歴",null,null,null,"在職期間（年月日）",null,null,null,"在職\n年月数"]
["現住所",null,null,null,null,null,null,null,null,null,null,"～",null,{"$f":"IF(ISBLANK(F8),\"\",DATEDIF(J8-DAY(1),M8,\"y\")&\"年\"&DATEDIF(J8-DAY(1),M8,\"ym\")&\"月\")","v":""}]
[null,"〒",null,null,null,null,null,null,null,null,null,"～",null,{"$f":"IF(ISBLANK(F9),\"\",DATEDIF(J9-DAY(1),M9,\"y\")&\"年\"&DATEDIF(J9-DAY(1),M9,\"ym\")&\"月\")","v":""}]
["都道府県",null,null,null,null,null,null,null,null,null,null,"～",null,""]
["市区町村",null,null,null,null,null,null,null,null,null,null,"～",null,""]
[null,null,null,null,null,null,null,null,null,null,null,"～",null,""]
[null,"TEL ",null,null,null,null,null,null,null,null,null,"～",null,""]
["就業先\n(都道府県）",null,null,null,null,null,null,null,null,null,null,"～",null,""]
["所属名",null,null,null,null,null,null,null,null,null,null,"～",null,""]
[null,null,null,null,null,null,null,null,null,null,null,"～",null,""]
["企業全体の従業員数",null,null,null,null,null,null,null,null,null,null,"～",null,""]
["所在地",null,null,null,null,null,null,null,null,null,null,"～",null,""]
[null,"〒",null,null,null,null,null,null,null,null,null,"～",null,""]
["都道府県",null,null,null,null,null,null,null,null,null,null,"～",null,""]
["市区町村",null,null,null,null,"在職期間　計"]
[null,null,null,null,null,"重複期間を除く在職期間　計"]
[null,"TEL ",null,null,null,{"$f":"L2","v":"2025-11-01"}]
["表彰歴",null,"表彰の種類","表彰の概要",null,null,null,null,null,null,null,null,"取得年月"]
[null,null,"大臣表彰"]
[null,null,"知事・行政機関の\n局長表彰"]
[null,null,"全国レベルの業界\n団体表彰"]
[null,null,"その他"]
["免許・\n資格等",null,"免許の種類","免許・資格等の概要",null,null,null,null,null,null,null,null,"取得年月"]
[null,null,"職業訓練指導員免許"]
[null,null,"技能検定委員"]
[null,null,"特許・実用新案等"]
["大会\n入賞歴等",null,null,"認定\n年度","職種",null,null,null,"技能\n検定","等級","技能士の名称",null,null,"取得年月"]
[null,null,"高度熟練技能者"]
[null,null,"ものづくりマイスター"]
[null,null,"全技連マイスター"]
[null,null,null,"開催回","参加職種",null,null,"順位"]
[null,null,"技能グランプリ\n（一級技能士競技大会）"]
[null,null,"技能五輪国際大会入賞歴"]
[null,null,"技能五輪全国大会入賞歴"]

{"sheet":"調書２","index":1,"n_rows":36,"n_cols":9,"rows_kept":36,"cut":false,"hidden":false,"merged":[[18,0,34,2],[18,3,34,5],[18,6,34,7],[18,8,34,8],[11,4,11,8],[12,0,12,2],[12,4,12,8],[16,0,16,8],[17,0,17,2],[17,3,17,5],[17,6,17,7],[13,0,13,1],[13,4,15,8],[14,0,14,1],[15,0,15,1],[0,0,0,8],[3,3,3,4],[3,7,3,8],[4,3,4,4],[4,7,4,8],[5,0,5,2],[5,3,15,3],[5,4,5,8],[6,5,6,8],[7,5,7,8],[8,5,9,8],[10,7,10,8]]}
["調書（２）都道府県"]
[]
[{"$f":"調書１!A2","v":"(様式３の１)"}]
["都道府県番号","都道府県名","職業\n部門","職種名（１）",null,"職種名（２）","ふりがな",{"$f":"調書１!C5&\"\"","v":""}]
[{"$f":"調書１!B3","v":"-"},{"$f":"調書１!C4&\"\"","v":""},{"$f":"調書１!E3&\"\"","v":""},{"$f":"調書１!F4&\"\"","v":""},null,{"$f":"調書１!H4&\"\"","v":""},"氏名",{"$f":"調書１!C6&\"\"","v":""}]
["過去５年の推薦回数",null,null,"推薦者及び推薦理由","（所在地又は住所）"]
[null,null,"年度",null,"〒"]
[null,null,"年度",null,"都道府県"]
[null,null,"年度",null,"市区町村"]
[null,null,"年度"]
[null,null,"年度",null,"（推薦都道府県知事名）",null,"TEL"]
["計",{"$f":"COUNTA(B7:B11)","v":0},"回"]
["推薦順位等",null,null,null,"（推薦理由）"]
["選考対象者総数"]
["推薦総数"]
["推薦順位"]
["卓越した技能の概要"]
["技能の概要",null,null,"功績・貢献の概要",null,null,"後進指導育成の概要",null,"現役性"]
[]
[]
[]
[]
[]
[]
[]
[]
[]
[]
[]
[]
[]
[]
[]
[]
[]
[null,null,{"$f":"LEN(A19)","v":0},null,null,{"$f":"LEN(D19)","v":0},null,{"$f":"LEN(G19)","v":0},{"$f":"LEN(I19)","v":0}]

{"sheet":"調書３","index":2,"n_rows":38,"n_cols":9,"rows_kept":38,"cut":false,"hidden":false,"merged":[[7,8,36,8],[6,0,6,2],[6,3,6,5],[6,6,6,7],[7,0,36,2],[7,3,36,5],[7,6,36,7],[5,0,5,8],[0,0,0,8],[3,3,3,4],[3,7,3,8],[4,3,4,4],[4,7,4,8]]}
["調書（３）都道府県"]
[]
[{"$f":"調書１!A2","v":"(様式３の１)"}]
["都道府県番号","都道府県名","職業部門","職種名（１）",null,"職種名（２）","ふりがな",{"$f":"調書１!C5&\"\"","v":""}]
[{"$f":"調書１!B3","v":"-"},{"$f":"調書１!C4&\"\"","v":""},{"$f":"調書１!E3&\"\"","v":""},{"$f":"調書１!F4&\"\"","v":""},null,{"$f":"調書１!H4&\"\"","v":""},"氏名",{"$f":"調書１!C6&\"\"","v":""}]
["卓越した技能の概要（続き）"]
["技能の概要",null,null,"功績・貢献の概要",null,null,"後進指導育成の概要",null,"現役性"]
[]
[]
[]
[]
[]
[]
[]
[]
[]
[]
[]
[]
[]
[]
[]
[]
[]
[]
[]
[]
[]
[]
[]
[]
[]
[]
[]
[]
[]
[]
[null,null,{"$f":"LEN(A8)","v":0},null,null,{"$f":"LEN(D8)","v":0},null,{"$f":"LEN(G8)","v":0},{"$f":"LEN(I8)","v":0}]

{"sheet":"調書３（2葉目）","index":3,"n_rows":38,"n_cols":9,"rows_kept":38,"cut":false,"hidden":false,"merged":[[7,8,36,8],[6,0,6,2],[6,3,6,5],[6,6,6,7],[7,0,36,2],[7,3,36,5],[7,6,36,7],[5,0,5,8],[0,0,0,8],[3,3,3,4],[3,7,3,8],[4,3,4,4],[4,7,4,8]]}
["調書（３）都道府県"]
[]
[{"$f":"調書１!A2","v":"(様式３の１)"}]
["都道府県番号","都道府県名","職業部門","職種名（１）",null,"職種名（２）","ふりがな",{"$f":"調書１!C5&\"\"","v":""}]
[{"$f":"調書１!B3","v":"-"},{"$f":"調書１!C4&\"\"","v":""},{"$f":"調書１!E3&\"\"","v":""},{"$f":"調書１!F4&\"\"","v":""},null,{"$f":"調書１!H4&\"\"","v":""},"氏名",{"$f":"調書１!C6&\"\"","v":""}]
["卓越した技能の概要（続き）"]
["技能の概要",null,null,"功績・貢献の概要",null,null,"後進指導育成の概要",null,"現役性"]
[]
[]
[]
[]
[]
[]
[]
[]
[]
[]
[]
[]
[]
[]
[]
[]
[]
[]
[]
[]
[]
[]
[]
[]
[]
[]
[]
[]
[]
[]
[null,null,{"$f":"LEN(A8)","v":0},null,null,{"$f":"LEN(D8)","v":0},null,{"$f":"LEN(G8)","v":0},{"$f":"LEN(I8)","v":0}]

{"sheet":"任意（表彰・資格・免許他）","index":4,"n_rows":35,"n_cols":2,"rows_kept":35,"cut":false,"hidden":false,"merged":[[34,0,34,1]]}
[null,"別紙"]
["表彰歴","取得年月"]
[]
[]
[]
[]
[]
[]
[]
[]
[]
[]
[]
[]
[]
[]
[]
[]
[]
["免許・資格等","取得年月"]
[]
[]
[]
[]
[]
[]
[]
[]
[]
[]
[]
[]
[]
[]
["※調書（１）に書き切れなかった「表彰歴」及び「免許・資格等」について、任意提出にて使用する。"]

{"sheet":"リスト ","index":5,"n_rows":157,"n_cols":41,"rows_kept":157,"cut":false,"hidden":true,"merged":[]}
["都道府県・団体名・推薦者氏名","都道府県番号","推薦区分","性別","表彰の種類","免許の種類","和暦","職業訓練指導員免許（123種）","大会結果","第1部門","第2部門","第3部門","第4部門","第5部門","第6部門","第7部門","第8部門","第9部門","第10部門","第11部門","第12部門","第13部門","第14部門","第15部門","第16部門","第17部門","第18部門","第19部門","第20部門","第21部門","第22部門","特級","一級","二級","単一等級","三級","ものづくりマイスター","技能五輪国際大会の競技職種","技能五輪全国大会の競技職種","全技連マイスター","技能グランプリ\n(一級技能士競技大会）"]
["北海道",1,"都道府県","男","大臣表彰",null,"昭和","園芸科","金\n（１位）","製銑工、製鋼工","汎用金属工作機械工","金属プレス工","一般機械器具組立工","電気機械組立工","自動車組立工","紡織工","衣服製造工","大工","ブロック積工、タイル張工","植木職、造園師","窯業製品製造工","木製製品製造工","めん類製造工","理容師","調理人","内張工","画工、広告美術工","その他の製品製造・加工処理の職業（金属材料製造、金属加工、金属溶接・溶断を除く）","システム設計技術者","ボイラーオペレーター","１～21部門のいずれかに属する職種につく障害がある技能者","鋳造：鋳造作業","アルミニウム陽極酸化処理：陽極酸化処理作業","アルミニウム陽極酸化処理：陽極酸化処理作業","溶射：肉盛溶射作業","かわらぶき：かわらぶき作業","造園","産業機械","造園","建築板金","カーペット系床仕上げ"]
["青森県",2,"団体","女","知事・行政機関の局長表彰",null,"平成","造園科","銀\n（２位）","非鉄金属製錬工","板金工","鉄工、製缶工","一般機械器具修理・検査工","民生用電子・電気機械器具組立工","自動車整備・修理・板金工","繊維製品製造工",null,"型枠大工","屋根ふき工",null,"窯業製品検査工","木・竹・草・つる製品検査工","パン・菓子製造工","美容師","バーテンダー","塗装工","映写技士","その他の装身具等身の回り品製造の職業","ソフトウェア開発技術者","クレーン・巻上機運転工",null,"金属熱処理：金属熱処理作業","カーテンウォール施工：金属製カーテンウォール工事作業","カーテンウォール施工：金属製カーテンウォール工事作業","路面標示施工：溶融ペイントハンドマーカー工事作業","テクニカルイラストレーション：テクニカルイラストレーションCAD作業","さく井","情報ネットワーク施工","精密機器組立て","印章彫刻","ガラス施工"]
["岩手県",3,"一般",null,"全国レベルの業界団体表彰",null,"令和","森林環境保全科","銅\n（３位）","鋳物製造工","金属研磨工","くぎ・ばね・金属線製造工","時計組立工・修理工","電気通信機械器具組立工","輸送用機械器具組立工（自動車を除く）","その他の繊維製品製造・検査の職業",null,"鉄筋工","左官",null,"その他の窯業・土石製品製造の職業","その他の木・竹・草・つる製品製造の職種","豆腐・こんにゃく・ふ製造工","美容サービス職","飲食物給仕係","畳工","製図工、写図工",null,"システム運用管理者","ポンプ・送風機・圧縮機運転工",null,"機械加工：機械加工作業","ガラス施工：ガラス工事作業","ガラス施工：ガラス工事作業","路面標示施工：加熱ペイントマシンマーカー工事作業","テクニカルイラストレーション：テクニカルイラストレーション手書き作業","金属溶解","製造チームチャレンジ","旋盤","工場板金","かわらぶき"]
["宮城県",4,null,null,"その他",null,null,"鉄鋼科","敢闘賞","鍛造工",null,"金属研磨工","計量計測機器組立工・修理工","電子応用機械器具組立工","輸送用機械器具検査工（自動車を除く）",null,null,"とび工","配管工",null,"化学製品製造工","パルプ・紙・紙製品製造工","かん詰・びん詰・レトルト食品製造工",null,null,"内装工","製品包装作業員",null,"通信ネットワーク技術者","その他の定置機関・機械運転の職業",null,"放電加工（非接触除去加工）：放電加工作業","かわらぶき：かわらぶき作業","かわらぶき：かわらぶき作業","塗料調色：調色作業","とび：とび作業","鋳造","メカトロニクス","フライス盤","冷凍空気調和機器施工","タイル張り"]
["秋田県",5,null,null,null,null,null,"鋳造科","出場","金属熱処理工",null,"金属彫刻工","光学機械器具組立工・修理工","半導体製品製造工","輸送用機械器具修理工（自動車を除く）",null,null,"土木作業員","防水工",null,"化学製品検査工","パルプ・紙・紙製品検査工","乳・乳製品製造工",null,null,"他に分類されない技能工、生産工程の職業","その他の生産関連・生産類似の職業",null,"その他の情報処理技術・通信技術の職業","開発技術者",null,"金型製作：金型製作作業","コンクリート圧送施工：コンクリート圧送工事作業","コンクリート圧送施工：コンクリート圧送工事作業","産業洗浄：高圧洗浄作業","プラスチック成形：射出成形作業","鍛造","機械製図CAD","構造物鉄工","防水施工","フライス盤"]
["山形県",6,null,null,null,null,null,"鍛造科",null,"圧延工",null,"金属製品製造工","レンズ研磨工・加工工","電球・電子管組立工","その他の輸送用機械器具組立・検査・修理の職業",null,null,"鉄道線路工事作業員","建築塗装工",null,"その他の化学製品製造の職業","その他のパルプ・紙・紙製品製造の職業","水産物加工工",null,null,null,null,null,null,"クリーニング工",null,"金属プレス加工：金属プレス加工作業","さく井：パーカッション式さく井工事作業","さく井：パーカッション式さく井工事作業","電子回路接続：電子回路接続作業","フラワー装飾：フラワー装飾作業","金属熱処理","CNC旋盤","自動車板金","陶磁器製造","プラスチック系床仕上げ"]
["福島県",7,null,null,null,null,null,"熱処理科",null,"伸線工",null,"金属加工・溶接検査工","他に分類されない光学機械器具組立工","電子機器部品組立工",null,null,null,"採鉱員","建築板金工",null,"ゴム製品製造工","印刷・製本作業員","食肉加工品製造工",null,null,null,null,null,null,"洗張職",null,"工場板金：工場板金作業","さく井：ロータリー式さく井工事作業","さく井：ロータリー式さく井工事作業","バルコニー施工：金属製バルコニー工事作業","プリント配線板製造：プリント配線板製造作業","粉末冶金","CNCフライス盤","曲げ板金","フラワー装飾","フラワー装飾"]
["茨城県",8,null,null,null,null,null,"機械科 ",null,"金属材料検査工",null,"その他の金属加工の職業",null,"束線工",null,null,null,"石切出作業員","その他の建設の職業",null,"他に分類されないゴム製品製造工","その他の印刷・製本の職業","野菜つけ物工",null,null,null,null,null,null,"その他の清掃の職業",null,"めっき：めっき作業","サッシ施工：ビル用サッシ施工作業","サッシ施工：ビル用サッシ施工作業",null,"プリント配線板製造：プリント配線板設計作業","機械加工","業務用ITｿﾌﾄｳｪｱ･ｿﾘｭｰｼｮﾝｽﾞ","機械組立て","パン製造","ペイント仕上げ広告技術"]
["栃木県",9,null,null,null,null,null,"溶接科",null,"その他の金属材料製造の職業",null,"金属溶接・溶断工",null,"被覆電線製造工",null,null,null,"じゃり・砂・粘土採取作業員","建設機械運転工",null,"プラスチック製品製造工","革・革製品製造工","保存食品・冷凍加工食品製造工",null,null,null,null,null,null,"１～20部門及び21部門の１～３に属さない技能的職種",null,"仕上げ：仕上げ作業","ダイカスト：コールドチャンバダイカスト作業","ダイカスト：コールドチャンバダイカスト作業",null,"ブロック建築：コンクリートブロック工事作業","放電加工","溶接","抜き型","漆器製造","レストランサービス"]
["群馬県",10,null,null,null,null,null,"塑性加工科 ",null,null,null,"めっき工",null,"乾電池・蓄電池製造工",null,null,null,"ダム・トンネル掘削作業員",null,null,"他に分類されないプラスチック製品製造工","その他の革・革製品製造の職業","弁当・惣菜類製造工",null,null,null,null,null,null,null,null,"機械検査：機械検査作業","ダイカスト：ホットチャンバダイカスト作業","ダイカスト：ホットチャンバダイカスト作業",null,"めっき：電気めっき作業","金型製作","印刷","電子機器組立て","配管","印章木口彫刻"]
["埼玉県",11,null,null,null,null,null,"構造物鉄工科",null,null,null,null,null,"電気機械器具検査工",null,null,null,"さく井・ボーリング機械運転工",null,null,"ゴム・プラスチック製品検査工",null,"精穀工",null,null,null,null,null,null,null,null,"ダイカスト：ダイカスト作業","タイル張り：タイル張り作業","タイル張り：タイル張り作業",null,"園芸装飾：室内園芸装飾作業","金属プレス加工","タイル張り","工場電気設備","樹脂接着剤注入施工","園芸装飾"]
["千葉県",12,null,null,null,null,null,"金属表面処理科 ",null,null,null,null,null,"電気機械器具修理工",null,null,null,"その他の採掘の職業",null,null,"土石製品製造工",null,"製粉工",null,null,null,null,null,null,null,null,"電子機器組立て：電子機器組立て作業","テクニカルイラストレーション：テクニカルイラストレーションCAD作業","テクニカルイラストレーション：テクニカルイラストレーションCAD作業",null,"化学分析：化学分析作業","鉄工","自動車板金","冷凍空調技術","縫製機械整備","家具"]
["東京都",13,null,null,null,null,null,"電子科 ",null,null,null,null,null,"その他の機械組立の職業",null,null,null,null,null,null,null,null,"味そ・しょう油製造工",null,null,null,null,null,null,null,null,"電気機器組立て：電気機器組立て作業","テクニカルイラストレーション：テクニカルイラストレーション手書き作業","テクニカルイラストレーション：テクニカルイラストレーション手書き作業",null,"家具製作：家具手加工作業","建築板金","航空機整備","洋裁","菓子製造","機械組立て"]
["神奈川県",14,null,null,null,null,null,"メカトロニクス科 ",null,null,null,null,null,"発電員、変電員",null,null,null,null,null,null,null,null,"他に分類されない精穀・製粉・調味食品製造工",null,null,null,null,null,null,null,null,"半導体製品製造：半導体製品製造作業","とび：とび作業","とび：とび作業",null,"機械･プラント製図：機械製図CAD作業","工場板金","配管","和裁","石材施工","貴金属装身具"]
["新潟県",15,null,null,null,null,null,"電気科",null,null,null,null,null,"送電線架線・敷設作業員",null,null,null,null,null,null,null,null,"飲料・たばこ製造工",null,null,null,null,null,null,null,null,"プリント配線板製造：プリント配線板製造作業","ニット製品製造：靴下製造作業","ニット製品製造：靴下製造作業",null,"機械･プラント製図：機械製図手書き作業","めつき","電子機器組立て","木型","内装仕上げ施工","建具"]
["富山県",16,null,null,null,null,null,"電気工事科",null,null,null,null,null,"配電線架線・敷設作業員工",null,null,null,null,null,null,null,null,"その他の飲料・たばこ製造の職業",null,null,null,null,null,null,null,null,"自動販売機調整：自動販売機調整作業","ハム・ソーセージ・ベーコン製造：ハム・ソーセージ・ベーコン製造作業","ハム・ソーセージ・ベーコン製造：ハム・ソーセージ・ベーコン製造作業",null,"機械加工：フライス盤作業","アルミニウム陽極酸化処理","ウェブデザイン","家具","ウェブデザイン","建築大工"]
["石川県",17,null,null,null,null,null,"コンピュータ制御科",null,null,null,null,null,"通信線架線・敷設作業員",null,null,null,null,null,null,null,null,null,null,null,null,null,null,null,null,null,"光学機器製造：光学機器製造作業","パン製造：パン製造作業","パン製造：パン製造作業",null,"機械加工：マシニングセンタ作業","溶射","電工","建具","建設機械整備","建築配管"]
["福井県",18,null,null,null,null,null,"発変電科",null,null,null,null,null,"電気通信設備作業員",null,null,null,null,null,null,null,null,null,null,null,null,null,null,null,null,null,"内燃機関組立て：内燃機関組立て作業","プラスチック成形：インフレーション成形作業","プラスチック成形：インフレーション成形作業",null,"機械加工：数値制御旋盤作業","金属ばね製造","工場電気設備","石工","建築大工","畳製作"]
["山梨県",19,null,null,null,null,null,"送配電科",null,null,null,null,null,"電気工事作業員",null,null,null,null,null,null,null,null,null,null,null,null,null,null,null,null,null,"空気圧装置組立て：空気圧装置組立て作業","プラスチック成形：ブロー成形作業","プラスチック成形：ブロー成形作業",null,"機械加工：普通旋盤作業","ロープ加工","れんが積み","洋菓子製造","家具製作","寝具"]
["長野県",20,null,null,null,null,null,"自動車製造科",null,null,null,null,null,null,null,null,null,null,null,null,null,null,null,null,null,null,null,null,null,null,null,"油圧装置調整：油圧装置調整作業","プラスチック成形：射出成形作業","プラスチック成形：射出成形作業",null,"機械加工：平面研削盤作業","仕上げ","左官","情報ネットワーク施工","建具製作","紳士服製作"]
["岐阜県",21,null,null,null,null,null,"自動車整備科",null,null,null,null,null,null,null,null,null,null,null,null,null,null,null,null,null,null,null,null,null,null,null,"建設機械整備：建設機械整備作業","プラスチック成形：真空成形作業","プラスチック成形：真空成形作業",null,"機械検査：機械検査作業","切削工具研削","広告美術","建築大工","かわらぶき","石工"]
["静岡県",22,null,null,null,null,null,"自動車車体整備科",null,null,null,null,null,null,null,null,null,null,null,null,null,null,null,null,null,null,null,null,null,null,null,"婦人子供服製造：婦人子供服製造作業","フラワー装飾：フラワー装飾作業","フラワー装飾：フラワー装飾作業",null,"貴金属装身具製作：貴金属装身具製作作業","機械検査","移動式ロボット","とび","サッシ施工","染色補正"]
["愛知県",23,null,null,null,null,null,"航空機製造科",null,null,null,null,null,null,null,null,null,null,null,null,null,null,null,null,null,null,null,null,null,null,null,"紳士服製造：紳士服製造作業","プリプレス：DTP作業","プリプレス：DTP作業",null,"金属熱処理：一般熱処理作業","ダイカスト","家具","左官","写真","旋盤"]
["三重県",24,null,null,null,null,null,"航空機整備科 ",null,null,null,null,null,null,null,null,null,null,null,null,null,null,null,null,null,null,null,null,null,null,null,"プラスチック成形：プラスチック成形作業","プリント配線板製造：プリント配線板製造作業","プリント配線板製造：プリント配線板製造作業",null,"金属熱処理：高周波･炎熱処理作業","機械保全","建具","タイル張り","機械・プラント製図","造園"]
["滋賀県",25,null,null,null,null,null,"鉄道車両科 ",null,null,null,null,null,null,null,null,null,null,null,null,null,null,null,null,null,null,null,null,null,null,null,"パン製造：パン製造作業","ブロック建築：コンクリートブロック工事作業","ブロック建築：コンクリートブロック工事作業",null,"金属熱処理：浸炭･浸炭窒化･窒化処理作業","電子回路接続","建築大工","配管","紙器・段ボール箱製造","日本料理"]
["京都府",26,null,null,null,null,null,"造船科",null,null,null,null,null,null,null,null,null,null,null,null,null,null,null,null,null,null,null,null,null,null,null,null,"みそ製造：みそ製造作業","みそ製造：みそ製造作業",null,"型枠施工：型枠工事作業","電子機器組立て","貴金属装身具","機械製図","とび","粘着シート仕上げ広告美術"]
["大阪府",27,null,null,null,null,null,"時計科",null,null,null,null,null,null,null,null,null,null,null,null,null,null,null,null,null,null,null,null,null,null,null,null,"めっき：電気めっき作業","めっき：電気めっき作業",null,"建築大工：大工工事作業","電気機器組立て","フラワー装飾","貴金属装身具","調理（日本料理）","表具"]
["兵庫県",28,null,null,null,null,null,"光学ガラス科 ",null,null,null,null,null,null,null,null,null,null,null,null,null,null,null,null,null,null,null,null,null,null,null,null,"めっき：溶融亜鉛めっき作業","めっき：溶融亜鉛めっき作業",null,"工場板金：曲げ板金作業","半導体製品製造","美容／理容","メカトロニクス","鋳造","婦人服製作"]
["奈良県",29,null,null,null,null,null,"光学機器科 ",null,null,null,null,null,null,null,null,null,null,null,null,null,null,null,null,null,null,null,null,null,null,null,null,"ロープ加工：ロープ加工作業","ロープ加工：ロープ加工作業",null,"工場板金：打出し板金作業","プリント配線板製造","ビューティーセラピー","電気溶接","酒造","壁装"]
["和歌山県",30,null,null,null,null,null,"計測機器科",null,null,null,null,null,null,null,null,null,null,null,null,null,null,null,null,null,null,null,null,null,null,null,null,"印刷：オフセット印刷作業","印刷：オフセット印刷作業",null,"広告美術仕上げ：広告面粘着シート仕上げ作業","自動販売機調整","洋裁","電工","畳制作","和裁"]
["鳥取県",31,null,null,null,null,null,"理化学機器科 ",null,null,null,null,null,null,null,null,null,null,null,null,null,null,null,null,null,null,null,null,null,null,null,null,"園芸装飾：室内園芸装飾作業","園芸装飾：室内園芸装飾作業",null,"左官：左官作業","産業車両整備","洋菓子製造","自動車工","左官","その他"]
["島根県",32,null,null,null,null,null,"製材機械科 ",null,null,null,null,null,null,null,null,null,null,null,null,null,null,null,null,null,null,null,null,null,null,null,null,"化学分析：化学分析作業","化学分析：化学分析作業",null,"仕上げ：機械組立仕上げ作業","鉄道車両製造・整備","自動車工","車体塗装","調理（すし料理）"]
["岡山県",33,null,null,null,null,null,"内燃機関科",null,null,null,null,null,null,null,null,null,null,null,null,null,null,null,null,null,null,null,null,null,null,null,null,"家具製作：家具手加工作業","家具製作：家具手加工作業",null,"時計修理：時計修理作業","光学機器製造","西洋料理","時計修理","染色"]
["広島県",34,null,null,null,null,null,"縫製機械科 ",null,null,null,null,null,null,null,null,null,null,null,null,null,null,null,null,null,null,null,null,null,null,null,null,"菓子製造：洋菓子製造作業","菓子製造：洋菓子製造作業",null,"写真：肖像写真デジタル作業","複写機組立て","レストランサービス","ウェブデザイン","表装"]
["山口県",35,null,null,null,null,null,"建設機械科",null,null,null,null,null,null,null,null,null,null,null,null,null,null,null,null,null,null,null,null,null,null,null,null,"菓子製造：和菓子製造作業","菓子製造：和菓子製造作業",null,"商品装飾展示：商品装飾展示作業","内燃機関組立て","車体塗装","ITネットワークシステム管理","ガラス施工"]
["徳島県",36,null,null,null,null,null,"建設機械運転科",null,null,null,null,null,null,null,null,null,null,null,null,null,null,null,null,null,null,null,null,null,null,null,null,"機械･プラント製図：機械製図CAD作業","機械･プラント製図：機械製図CAD作業",null,"造園：造園工事作業","空気圧装置組立て","造園","グラフィックデザイン","着付け"]
["香川県",37,null,null,null,null,null,"農業機械科 ",null,null,null,null,null,null,null,null,null,null,null,null,null,null,null,null,null,null,null,null,null,null,null,null,"機械･プラント製図：機械製図手書き作業","機械･プラント製図：機械製図手書き作業",null,"鋳造：鋳鉄鋳物鋳造作業","油圧装置調整","冷凍空調技術","業務用ITソフトウェア・ソリューションズ","調理（西洋料理）"]
["愛媛県",38,null,null,null,null,null,"冷凍空調機器科",null,null,null,null,null,null,null,null,null,null,null,null,null,null,null,null,null,null,null,null,null,null,null,null,"機械加工：フライス盤作業","機械加工：フライス盤作業",null,"鉄筋施工：鉄筋施工図作成作業","縫製機械整備","ITネットワークシステム管理","クラウドコンピューティング","金属研磨仕上げ"]
["高知県",39,null,null,null,null,null,"織機調整科",null,null,null,null,null,null,null,null,null,null,null,null,null,null,null,null,null,null,null,null,null,null,null,null,"機械加工：ホブ盤作業","機械加工：ホブ盤作業",null,"鉄筋施工：鉄筋組立て作業","建設機械整備","グラフィックデザイン","サイバーセキュリティ","プラスチック成形"]
["福岡県",40,null,null,null,null,null,"織布科",null,null,null,null,null,null,null,null,null,null,null,null,null,null,null,null,null,null,null,null,null,null,null,null,"機械加工：マシニングセンタ作業","機械加工：マシニングセンタ作業",null,"電気機器組立て：シーケンス制御作業","農業機械整備","看護／介護","モバイルアプリケーション開発","ブロック建築"]
["佐賀県",41,null,null,null,null,null,"染色科",null,null,null,null,null,null,null,null,null,null,null,null,null,null,null,null,null,null,null,null,null,null,null,null,"機械加工：円筒研削盤作業","機械加工：円筒研削盤作業",null,"電気機器組立て：配電盤･制御盤組立て作業","冷凍空気調和機器施工","構造物鉄工","3Dデジタルゲームアート","ウェルポイント施工"]
["長崎県",42,null,null,null,null,null,"ニット科",null,null,null,null,null,null,null,null,null,null,null,null,null,null,null,null,null,null,null,null,null,null,null,null,"機械加工：心無し研削盤作業","機械加工：心無し研削盤作業",null,"電気製図：配電盤･制御盤製図作業","染色","プラスチック金型","その他","レストランサービス"]
["熊本県",43,null,null,null,null,null,"洋裁科 ",null,null,null,null,null,null,null,null,null,null,null,null,null,null,null,null,null,null,null,null,null,null,null,null,"機械加工：数値制御フライス盤作業","機械加工：数値制御フライス盤作業",null,"電子機器組立て：電子機器組立て作業","ニット製品製造","ビジュアル販売促進",null,"調理（中国料理）"]
["大分県",44,null,null,null,null,null,"洋服科",null,null,null,null,null,null,null,null,null,null,null,null,null,null,null,null,null,null,null,null,null,null,null,null,"機械加工：数値制御旋盤作業","機械加工：数値制御旋盤作業",null,"塗装：金属塗装作業","婦人子供服製造","試作モデル製作",null,"電機機組立て"]
["宮崎県",45,null,null,null,null,null,"和裁科",null,null,null,null,null,null,null,null,null,null,null,null,null,null,null,null,null,null,null,null,null,null,null,null,"機械加工：普通旋盤作業","機械加工：普通旋盤作業",null,"内燃機関組立て：量産形内燃機関組立て作業","紳士服製造","建設コンクリート施工",null,"婦人子供服製造"]
["鹿児島県",46,null,null,null,null,null,"寝具科",null,null,null,null,null,null,null,null,null,null,null,null,null,null,null,null,null,null,null,null,null,null,null,null,"機械加工：平面研削盤作業","機械加工：平面研削盤作業",null,"配管：建築配管作業","和裁","パン製造",null,"塗装"]
["沖縄県",47,null,null,null,null,null,"帆布製品科 ",null,null,null,null,null,null,null,null,null,null,null,null,null,null,null,null,null,null,null,null,null,null,null,null,"機械検査：機械検査作業","機械検査：機械検査作業",null,"舞台機構調整：音響機構調整作業","寝具製作","重機メンテナンス",null,"調理（麺料理）"]
[null,"－",null,null,null,null,null,"縫製科 ",null,null,null,null,null,null,null,null,null,null,null,null,null,null,null,null,null,null,null,null,null,null,null,null,"機械木工：機械木工作業","機械木工：機械木工作業",null,"冷凍空気調和機器施工：冷凍空気調和機器施工作業","帆布製品製造","3Dデジタルゲームアート",null,"機械加工"]
[null,null,null,null,null,null,null,"木型科 ",null,null,null,null,null,null,null,null,null,null,null,null,null,null,null,null,null,null,null,null,null,null,null,null,"機械木工：木工機械整備作業","機械木工：木工機械整備作業",null,"和裁：和服製作作業","布はく縫製","貨物輸送",null,"機械検査"]
[null,null,null,null,null,null,null,"木工科",null,null,null,null,null,null,null,null,null,null,null,null,null,null,null,null,null,null,null,null,null,null,null,null,"貴金属装身具製作：貴金属装身具製作作業","貴金属装身具製作：貴金属装身具製作作業",null,null,"機械木工","化学実験技術",null,"半導体製品製造"]
[null,null,null,null,null,null,null,"木材工芸科 ",null,null,null,null,null,null,null,null,null,null,null,null,null,null,null,null,null,null,null,null,null,null,null,null,"義肢･装具製作：義肢製作作業","義肢･装具製作：義肢製作作業",null,null,"木型製作","クラウドコンピューティング",null,"紳士服製造"]
[null,null,null,null,null,null,null,"竹工芸科",null,null,null,null,null,null,null,null,null,null,null,null,null,null,null,null,null,null,null,null,null,null,null,null,"強化プラスチック成形：手積み積層成形作業","強化プラスチック成形：手積み積層成形作業",null,null,"家具製作","サイバーセキュリティ",null,"タイル張り"]
[null,null,null,null,null,null,null,"紙器科",null,null,null,null,null,null,null,null,null,null,null,null,null,null,null,null,null,null,null,null,null,null,null,null,"金属ばね製造：線ばね製造作業","金属ばね製造：線ばね製造作業",null,null,"建具製作","水技術",null,"路面標示施工"]
[null,null,null,null,null,null,null,"製版・印刷科 ",null,null,null,null,null,null,null,null,null,null,null,null,null,null,null,null,null,null,null,null,null,null,null,null,"金属ばね製造：薄板ばね製造作業","金属ばね製造：薄板ばね製造作業",null,null,"紙器・段ボール箱製造","ホテルレセプション",null,"園芸装飾"]
[null,null,null,null,null,null,null,"製本科 ",null,null,null,null,null,null,null,null,null,null,null,null,null,null,null,null,null,null,null,null,null,null,null,null,"金属プレス加工：金属プレス作業","金属プレス加工：金属プレス作業",null,null,"プリプレス","3Dプリント",null,"放電加工"]
[null,null,null,null,null,null,null,"プラスチック製品科 ",null,null,null,null,null,null,null,null,null,null,null,null,null,null,null,null,null,null,null,null,null,null,null,null,"金属材料試験：機械試験作業","金属材料試験：機械試験作業",null,null,"印刷","デジタル・コンストラクション",null,"機械保全"]
[null,null,null,null,null,null,null,"レザー加工科 ",null,null,null,null,null,null,null,null,null,null,null,null,null,null,null,null,null,null,null,null,null,null,null,null,"金属材料試験：組織試験作業","金属材料試験：組織試験作業",null,null,"製本","工業デザイン技術※",null,"和裁"]
[null,null,null,null,null,null,null,"ガラス科 ",null,null,null,null,null,null,null,null,null,null,null,null,null,null,null,null,null,null,null,null,null,null,null,null,"金属熱処理：一般熱処理作業","金属熱処理：一般熱処理作業",null,null,"プラスチック成形","インダストリー4.0",null,"貴金属装身具製作"]
[null,null,null,null,null,null,null,"ほうろう製品科",null,null,null,null,null,null,null,null,null,null,null,null,null,null,null,null,null,null,null,null,null,null,null,null,"金属熱処理：高周波･炎熱処理作業","金属熱処理：高周波･炎熱処理作業",null,null,"強化プラスチック成形","モバイルアプリケーション開発",null,"広告美術仕上げ"]
[null,null,null,null,null,null,null,"陶磁器科",null,null,null,null,null,null,null,null,null,null,null,null,null,null,null,null,null,null,null,null,null,null,null,null,"金属熱処理：浸炭･浸炭窒化･窒化処理作業","金属熱処理：浸炭･浸炭窒化･窒化処理作業",null,null,"陶磁器製造","光電子技術",null,"ロープ加工"]
[null,null,null,null,null,null,null,"ブロック建築科",null,null,null,null,null,null,null,null,null,null,null,null,null,null,null,null,null,null,null,null,null,null,null,null,"金属溶解：軽合金溶解炉溶解作業","金属溶解：軽合金溶解炉溶解作業",null,null,"石材施工","鉄道車両技術※",null,"ビルクリーニング"]
[null,null,null,null,null,null,null,"石材科",null,null,null,null,null,null,null,null,null,null,null,null,null,null,null,null,null,null,null,null,null,null,null,null,"空気圧装置組立て：空気圧装置組立て作業","空気圧装置組立て：空気圧装置組立て作業",null,null,"パン製造","再生可能エネルギー",null,"寝具製作"]
[null,null,null,null,null,null,null,"麺科",null,null,null,null,null,null,null,null,null,null,null,null,null,null,null,null,null,null,null,null,null,null,null,null,"型枠施工：型枠工事作業","型枠施工：型枠工事作業",null,null,"菓子製造","産業用ロボット",null,"造園"]
[null,null,null,null,null,null,null,"パン・菓子科",null,null,null,null,null,null,null,null,null,null,null,null,null,null,null,null,null,null,null,null,null,null,null,null,"型枠施工：型枠工事作業","型枠施工：型枠工事作業",null,null,"製麺","その他",null,"型枠施工"]
[null,null,null,null,null,null,null,"食肉科",null,null,null,null,null,null,null,null,null,null,null,null,null,null,null,null,null,null,null,null,null,null,null,null,"建具製作：木製建具機械加工作業","建具製作：木製建具機械加工作業",null,null,"ハム・ソーセージ・ベーコン製造",null,null,"さく井"]
[null,null,null,null,null,null,null,"水産物加工科",null,null,null,null,null,null,null,null,null,null,null,null,null,null,null,null,null,null,null,null,null,null,null,null,"建具製作：木製建具手加工作業","建具製作：木製建具手加工作業",null,null,"水産練り製品製造",null,null,"鉄筋施工"]
[null,null,null,null,null,null,null,"発酵科",null,null,null,null,null,null,null,null,null,null,null,null,null,null,null,null,null,null,null,null,null,null,null,null,"建設機械整備：建設機械整備作業","建設機械整備：建設機械整備作業",null,null,"みそ製造",null,null,"化学分析"]
[null,null,null,null,null,null,null,"建築科",null,null,null,null,null,null,null,null,null,null,null,null,null,null,null,null,null,null,null,null,null,null,null,null,"建築大工：大工工事作業","建築大工：大工工事作業",null,null,"酒造",null,null,"帆布製品製造"]
[null,null,null,null,null,null,null,"屋根科",null,null,null,null,null,null,null,null,null,null,null,null,null,null,null,null,null,null,null,null,null,null,null,null,"建築板金：ダクト板金作業","建築板金：ダクト板金作業",null,null,"情報配線施工",null,null,"建設関係"]
[null,null,null,null,null,null,null,"とび科",null,null,null,null,null,null,null,null,null,null,null,null,null,null,null,null,null,null,null,null,null,null,null,null,"建築板金：内外装板金作業","建築板金：内外装板金作業",null,null,"建築大工",null,null,"窯業・土石関係"]
[null,null,null,null,null,null,null,"左官・タイル科",null,null,null,null,null,null,null,null,null,null,null,null,null,null,null,null,null,null,null,null,null,null,null,null,"光学機器製造：光学ガラス研磨作業","光学機器製造：光学ガラス研磨作業",null,null,"枠組壁建築",null,null,"金属加工関係"]
[null,null,null,null,null,null,null,"築炉科",null,null,null,null,null,null,null,null,null,null,null,null,null,null,null,null,null,null,null,null,null,null,null,null,"光学機器製造：光学機器組立て作業","光学機器製造：光学機器組立て作業",null,null,"かわらぶき",null,null,"一般機械器具関係"]
[null,null,null,null,null,null,null,"畳科",null,null,null,null,null,null,null,null,null,null,null,null,null,null,null,null,null,null,null,null,null,null,null,null,"工場板金：機械板金作業","工場板金：機械板金作業",null,null,"とび",null,null,"食料品関係"]
[null,null,null,null,null,null,null,"配管科",null,null,null,null,null,null,null,null,null,null,null,null,null,null,null,null,null,null,null,null,null,null,null,null,"工場板金：曲げ板金作業","工場板金：曲げ板金作業",null,null,"左官",null,null,"衣服･繊維製品関係"]
[null,null,null,null,null,null,null,"住宅設備機器科",null,null,null,null,null,null,null,null,null,null,null,null,null,null,null,null,null,null,null,null,null,null,null,null,"工場板金：数値制御タレットパンチプレス板金作業","工場板金：数値制御タレットパンチプレス板金作業",null,null,"築炉",null,null,"木材・木製品・紙加工品関係"]
[null,null,null,null,null,null,null,"さく井科",null,null,null,null,null,null,null,null,null,null,null,null,null,null,null,null,null,null,null,null,null,null,null,null,"工場板金：打出し板金作業","工場板金：打出し板金作業",null,null,"ブロック建築",null,null,"プラスチック製品関係"]
[null,null,null,null,null,null,null,"建設科",null,null,null,null,null,null,null,null,null,null,null,null,null,null,null,null,null,null,null,null,null,null,null,null,"広告美術仕上げ：広告面粘着シート仕上げ作業","広告美術仕上げ：広告面粘着シート仕上げ作業",null,null,"エーエルシーパネル施工",null,null,"貴金属・装身具関係"]
[null,null,null,null,null,null,null,"枠組壁建築科",null,null,null,null,null,null,null,null,null,null,null,null,null,null,null,null,null,null,null,null,null,null,null,null,"左官：左官作業","左官：左官作業",null,null,"タイル張り",null,null,"その他"]
[null,null,null,null,null,null,null,"プレハブ建築科",null,null,null,null,null,null,null,null,null,null,null,null,null,null,null,null,null,null,null,null,null,null,null,null,"産業車両整備：産業車両整備作業","産業車両整備：産業車両整備作業",null,null,"畳製作"]
[null,null,null,null,null,null,null,"スレート科",null,null,null,null,null,null,null,null,null,null,null,null,null,null,null,null,null,null,null,null,null,null,null,null,"仕上げ：機械組立仕上げ作業","仕上げ：機械組立仕上げ作業",null,null,"配管"]
[null,null,null,null,null,null,null,"建築板金科",null,null,null,null,null,null,null,null,null,null,null,null,null,null,null,null,null,null,null,null,null,null,null,null,"仕上げ：金型仕上げ作業","仕上げ：金型仕上げ作業",null,null,"厨房設備施工"]
[null,null,null,null,null,null,null,"防水科",null,null,null,null,null,null,null,null,null,null,null,null,null,null,null,null,null,null,null,null,null,null,null,null,"仕上げ：治工具仕上げ作業","仕上げ：治工具仕上げ作業",null,null,"型枠施工"]
[null,null,null,null,null,null,null,"インテリア科",null,null,null,null,null,null,null,null,null,null,null,null,null,null,null,null,null,null,null,null,null,null,null,null,"紙器・段ボール箱製造：段ボール箱製造作業","紙器・段ボール箱製造：段ボール箱製造作業",null,null,"鉄筋施工"]
[null,null,null,null,null,null,null,"床仕上げ科",null,null,null,null,null,null,null,null,null,null,null,null,null,null,null,null,null,null,null,null,null,null,null,null,"時計修理：時計修理作業","時計修理：時計修理作業",null,null,"コンクリート圧送施工"]
[null,null,null,null,null,null,null,"熱絶縁科",null,null,null,null,null,null,null,null,null,null,null,null,null,null,null,null,null,null,null,null,null,null,null,null,"自動ドア施工：自動ドア施工作業","自動ドア施工：自動ドア施工作業",null,null,"防水施工"]
[null,null,null,null,null,null,null,"サッシ・ガラス施工科",null,null,null,null,null,null,null,null,null,null,null,null,null,null,null,null,null,null,null,null,null,null,null,null,"自動販売機調整：自動販売機調整作業","自動販売機調整：自動販売機調整作業",null,null,"樹脂接着剤注入施工"]
[null,null,null,null,null,null,null,"土木科",null,null,null,null,null,null,null,null,null,null,null,null,null,null,null,null,null,null,null,null,null,null,null,null,"酒造：清酒製造作業","酒造：清酒製造作業",null,null,"内装仕上げ施工"]
[null,null,null,null,null,null,null,"測量科",null,null,null,null,null,null,null,null,null,null,null,null,null,null,null,null,null,null,null,null,null,null,null,null,"樹脂接着剤注入施工：樹脂接着剤注入工事作業","樹脂接着剤注入施工：樹脂接着剤注入工事作業",null,null,"熱絶縁施工"]
[null,null,null,null,null,null,null,"ボイラー科",null,null,null,null,null,null,null,null,null,null,null,null,null,null,null,null,null,null,null,null,null,null,null,null,"畳製作：畳製作作業","畳製作：畳製作作業",null,null,"カーテンウォール施工"]
[null,null,null,null,null,null,null,"クレーン科",null,null,null,null,null,null,null,null,null,null,null,null,null,null,null,null,null,null,null,null,null,null,null,null,"紳士服製造：紳士既製服製造作業","紳士服製造：紳士既製服製造作業",null,null,"サッシ施工"]
[null,null,null,null,null,null,null,"港湾荷役科",null,null,null,null,null,null,null,null,null,null,null,null,null,null,null,null,null,null,null,null,null,null,null,null,"厨房設備施工：厨房設備施工作業","厨房設備施工：厨房設備施工作業",null,null,"自動ドア施工"]
[null,null,null,null,null,null,null,"化学分析科",null,null,null,null,null,null,null,null,null,null,null,null,null,null,null,null,null,null,null,null,null,null,null,null,"製本：製本作業","製本：製本作業",null,null,"バルコニー施工"]
[null,null,null,null,null,null,null,"公害検査科",null,null,null,null,null,null,null,null,null,null,null,null,null,null,null,null,null,null,null,null,null,null,null,null,"石材施工：石材加工作業","石材施工：石材加工作業",null,null,"ガラス施工"]
[null,null,null,null,null,null,null,"漆器科",null,null,null,null,null,null,null,null,null,null,null,null,null,null,null,null,null,null,null,null,null,null,null,null,"石材施工：石積み作業","石材施工：石積み作業",null,null,"ウェルポイント施工"]
[null,null,null,null,null,null,null,"貴金属・宝石科",null,null,null,null,null,null,null,null,null,null,null,null,null,null,null,null,null,null,null,null,null,null,null,null,"石材施工：石張り作業","石材施工：石張り作業",null,null,"テクニカルイラストレーション"]
[null,null,null,null,null,null,null,"印章彫刻科",null,null,null,null,null,null,null,null,null,null,null,null,null,null,null,null,null,null,null,null,null,null,null,null,"切削工具研削：工作機械用切削工具研削作業","切削工具研削：工作機械用切削工具研削作業",null,null,"機械・プラント製図"]
[null,null,null,null,null,null,null,"表具科",null,null,null,null,null,null,null,null,null,null,null,null,null,null,null,null,null,null,null,null,null,null,null,null,"造園：造園工事作業","造園：造園工事作業",null,null,"電気製図"]
[null,null,null,null,null,null,null,"塗装科",null,null,null,null,null,null,null,null,null,null,null,null,null,null,null,null,null,null,null,null,null,null,null,null,"鍛造：ハンマ型鍛造作業","鍛造：ハンマ型鍛造作業",null,null,"金属材料試験"]
[null,null,null,null,null,null,null,"広告美術科",null,null,null,null,null,null,null,null,null,null,null,null,null,null,null,null,null,null,null,null,null,null,null,null,"築炉：築炉作業","築炉：築炉作業",null,null,"貴金属装身具製作"]
[null,null,null,null,null,null,null,"義肢装具科",null,null,null,null,null,null,null,null,null,null,null,null,null,null,null,null,null,null,null,null,null,null,null,null,"鋳造：鋳鉄鋳物鋳造作業","鋳造：鋳鉄鋳物鋳造作業",null,null,"印章彫刻"]
[null,null,null,null,null,null,null,"フォークリフト科",null,null,null,null,null,null,null,null,null,null,null,null,null,null,null,null,null,null,null,null,null,null,null,null,"鋳造：非鉄金属鋳物鋳造作業","鋳造：非鉄金属鋳物鋳造作業",null,null,"表装"]
[null,null,null,null,null,null,null,"電気通信科",null,null,null,null,null,null,null,null,null,null,null,null,null,null,null,null,null,null,null,null,null,null,null,null,"鉄筋施工：鉄筋施工図作成作業","鉄筋施工：鉄筋施工図作成作業",null,null,"塗装"]
[null,null,null,null,null,null,null,"電話交換科",null,null,null,null,null,null,null,null,null,null,null,null,null,null,null,null,null,null,null,null,null,null,null,null,"鉄筋施工：鉄筋組立て作業","鉄筋施工：鉄筋組立て作業",null,null,"路面標示施工"]
[null,null,null,null,null,null,null,"工業包装科",null,null,null,null,null,null,null,null,null,null,null,null,null,null,null,null,null,null,null,null,null,null,null,null,"鉄工：構造物鉄工作業","鉄工：構造物鉄工作業",null,null,"広告美術仕上げ"]
[null,null,null,null,null,null,null,"事務科",null,null,null,null,null,null,null,null,null,null,null,null,null,null,null,null,null,null,null,null,null,null,null,null,"鉄工：製缶作業","鉄工：製缶作業",null,null,"義肢・装具製作"]
[null,null,null,null,null,null,null,"貿易事務科",null,null,null,null,null,null,null,null,null,null,null,null,null,null,null,null,null,null,null,null,null,null,null,null,"鉄道車両製造・整備：機器ぎ装作業","鉄道車両製造・整備：機器ぎ装作業",null,null,"メカトロニクス"]
[null,null,null,null,null,null,null,"流通ビジネス科",null,null,null,null,null,null,null,null,null,null,null,null,null,null,null,null,null,null,null,null,null,null,null,null,"鉄道車両製造・整備：走行装置整備作業","鉄道車両製造・整備：走行装置整備作業",null,null,"電気溶接"]
[null,null,null,null,null,null,null,"介護サービス科",null,null,null,null,null,null,null,null,null,null,null,null,null,null,null,null,null,null,null,null,null,null,null,null,"鉄道車両製造・整備：鉄道車両点検・調整作業","鉄道車両製造・整備：鉄道車両点検・調整作業",null,null,"電工"]
[null,null,null,null,null,null,null,"写真科",null,null,null,null,null,null,null,null,null,null,null,null,null,null,null,null,null,null,null,null,null,null,null,null,"鉄道車両製造・整備：電気ぎ装作業","鉄道車両製造・整備：電気ぎ装作業",null,null,"自動車工"]
[null,null,null,null,null,null,null,"理容科",null,null,null,null,null,null,null,null,null,null,null,null,null,null,null,null,null,null,null,null,null,null,null,null,"鉄道車両製造・整備：内部ぎ装作業","鉄道車両製造・整備：内部ぎ装作業",null,null,"車体塗装"]
[null,null,null,null,null,null,null,"美容科",null,null,null,null,null,null,null,null,null,null,null,null,null,null,null,null,null,null,null,null,null,null,null,null,"鉄道車両製造・整備：配管ぎ装作業","鉄道車両製造・整備：配管ぎ装作業",null,null,"時計修理"]
[null,null,null,null,null,null,null,"ホテル・旅館・レストラン科",null,null,null,null,null,null,null,null,null,null,null,null,null,null,null,null,null,null,null,null,null,null,null,null,"電気機器組立て：シーケンス制御作業","電気機器組立て：シーケンス制御作業",null,null,"ウェブデザイン"]
[null,null,null,null,null,null,null,"観光ビジネス科",null,null,null,null,null,null,null,null,null,null,null,null,null,null,null,null,null,null,null,null,null,null,null,null,"電気機器組立て：配電盤･制御盤組立て作業","電気機器組立て：配電盤･制御盤組立て作業",null,null,"ITネットワークシステム管理"]
[null,null,null,null,null,null,null,"建築物衛生管理科",null,null,null,null,null,null,null,null,null,null,null,null,null,null,null,null,null,null,null,null,null,null,null,null,"電気機器組立て：変圧器組立て作業","電気機器組立て：変圧器組立て作業",null,null,"グラフィックデザイン"]
[null,null,null,null,null,null,null,"建築物設備管理科",null,null,null,null,null,null,null,null,null,null,null,null,null,null,null,null,null,null,null,null,null,null,null,null,"電気製図：配電盤･制御盤製図作業","電気製図：配電盤･制御盤製図作業",null,null,"業務用ITソフトウェア・ソリューションズ（旧：オフィスソフトウェア・ソリューション）"]
[null,null,null,null,null,null,null,"日本料理科",null,null,null,null,null,null,null,null,null,null,null,null,null,null,null,null,null,null,null,null,null,null,null,null,"電子機器組立て：電子機器組立て作業","電子機器組立て：電子機器組立て作業",null,null,"ロボットソフト組込"]
[null,null,null,null,null,null,null,"中国料理科",null,null,null,null,null,null,null,null,null,null,null,null,null,null,null,null,null,null,null,null,null,null,null,null,"塗装：金属塗装作業","塗装：金属塗装作業",null,null,"クラウドコンピューティング"]
[null,null,null,null,null,null,null,"西洋料理科",null,null,null,null,null,null,null,null,null,null,null,null,null,null,null,null,null,null,null,null,null,null,null,null,"塗装：建築塗装作業","塗装：建築塗装作業",null,null,"サイバーセキュリティ"]
[null,null,null,null,null,null,null,"臨床検査科",null,null,null,null,null,null,null,null,null,null,null,null,null,null,null,null,null,null,null,null,null,null,null,null,"塗装：鋼橋塗装作業","塗装：鋼橋塗装作業",null,null,"モバイルアプリケーション開発"]
[null,null,null,null,null,null,null,"デザイン科",null,null,null,null,null,null,null,null,null,null,null,null,null,null,null,null,null,null,null,null,null,null,null,null,"塗装：噴霧塗装作業","塗装：噴霧塗装作業",null,null,"3Dデジタルゲームアート"]
[null,null,null,null,null,null,null,"フラワー装飾科",null,null,null,null,null,null,null,null,null,null,null,null,null,null,null,null,null,null,null,null,null,null,null,null,"内装仕上げ施工：プラスチック系床仕上げ工事作業","内装仕上げ施工：プラスチック系床仕上げ工事作業",null,null,"AI・機械学習"]
[null,null,null,null,null,null,null,"情報処理科",null,null,null,null,null,null,null,null,null,null,null,null,null,null,null,null,null,null,null,null,null,null,null,null,"内装仕上げ施工：ボード仕上げ工事作業","内装仕上げ施工：ボード仕上げ工事作業",null,null,"データサイエンス(ビックデータ)"]
[null,null,null,null,null,null,null,null,null,null,null,null,null,null,null,null,null,null,null,null,null,null,null,null,null,null,null,null,null,null,null,null,"内装仕上げ施工：化粧フィルム工事作業","内装仕上げ施工：化粧フィルム工事作業"]
[null,null,null,null,null,null,null,null,null,null,null,null,null,null,null,null,null,null,null,null,null,null,null,null,null,null,null,null,null,null,null,null,"内装仕上げ施工：鋼製下地工事作業","内装仕上げ施工：鋼製下地工事作業"]
[null,null,null,null,null,null,null,null,null,null,null,null,null,null,null,null,null,null,null,null,null,null,null,null,null,null,null,null,null,null,null,null,"内燃機関組立て：量産形内燃機関組立て作業","内燃機関組立て：量産形内燃機関組立て作業"]
[null,null,null,null,null,null,null,null,null,null,null,null,null,null,null,null,null,null,null,null,null,null,null,null,null,null,null,null,null,null,null,null,"内燃機関組立て：量産形内燃機関組立て作業","内燃機関組立て：量産形内燃機関組立て作業"]
[null,null,null,null,null,null,null,null,null,null,null,null,null,null,null,null,null,null,null,null,null,null,null,null,null,null,null,null,null,null,null,null,"熱絶縁施工：吹付け硬質ウレタンフォーム断熱工事作業","熱絶縁施工：吹付け硬質ウレタンフォーム断熱工事作業"]
[null,null,null,null,null,null,null,null,null,null,null,null,null,null,null,null,null,null,null,null,null,null,null,null,null,null,null,null,null,null,null,null,"熱絶縁施工：保温保冷工事作業","熱絶縁施工：保温保冷工事作業"]
[null,null,null,null,null,null,null,null,null,null,null,null,null,null,null,null,null,null,null,null,null,null,null,null,null,null,null,null,null,null,null,null,"農業機械整備：農業機械整備作業","農業機械整備：農業機械整備作業"]
[null,null,null,null,null,null,null,null,null,null,null,null,null,null,null,null,null,null,null,null,null,null,null,null,null,null,null,null,null,null,null,null,"配管：プラント配管作業","配管：プラント配管作業"]
[null,null,null,null,null,null,null,null,null,null,null,null,null,null,null,null,null,null,null,null,null,null,null,null,null,null,null,null,null,null,null,null,"配管：建築配管作業","配管：建築配管作業"]
[null,null,null,null,null,null,null,null,null,null,null,null,null,null,null,null,null,null,null,null,null,null,null,null,null,null,null,null,null,null,null,null,"半導体製品製造：集積回路チップ製造作業","半導体製品製造：集積回路チップ製造作業"]
[null,null,null,null,null,null,null,null,null,null,null,null,null,null,null,null,null,null,null,null,null,null,null,null,null,null,null,null,null,null,null,null,"半導体製品製造：集積回路組立て作業","半導体製品製造：集積回路組立て作業"]
[null,null,null,null,null,null,null,null,null,null,null,null,null,null,null,null,null,null,null,null,null,null,null,null,null,null,null,null,null,null,null,null,"表装：表具作業","表装：表具作業"]
[null,null,null,null,null,null,null,null,null,null,null,null,null,null,null,null,null,null,null,null,null,null,null,null,null,null,null,null,null,null,null,null,"表装：壁装作業","表装：壁装作業"]
[null,null,null,null,null,null,null,null,null,null,null,null,null,null,null,null,null,null,null,null,null,null,null,null,null,null,null,null,null,null,null,null,"婦人子供服製造：婦人子供既製服パターンメーキング作業","婦人子供服製造：婦人子供既製服パターンメーキング作業"]
[null,null,null,null,null,null,null,null,null,null,null,null,null,null,null,null,null,null,null,null,null,null,null,null,null,null,null,null,null,null,null,null,"婦人子供服製造：婦人子供既製服縫製作業","婦人子供服製造：婦人子供既製服縫製作業"]
[null,null,null,null,null,null,null,null,null,null,null,null,null,null,null,null,null,null,null,null,null,null,null,null,null,null,null,null,null,null,null,null,"婦人子供服製造：婦人子供注文服製作作業","婦人子供服製造：婦人子供注文服製作作業"]
[null,null,null,null,null,null,null,null,null,null,null,null,null,null,null,null,null,null,null,null,null,null,null,null,null,null,null,null,null,null,null,null,"布はく縫製：ワイシャツ製造作業","布はく縫製：ワイシャツ製造作業"]
[null,null,null,null,null,null,null,null,null,null,null,null,null,null,null,null,null,null,null,null,null,null,null,null,null,null,null,null,null,null,null,null,"舞台機構調整：音響機構調整作業","舞台機構調整：音響機構調整作業"]
[null,null,null,null,null,null,null,null,null,null,null,null,null,null,null,null,null,null,null,null,null,null,null,null,null,null,null,null,null,null,null,null,"粉末冶金：焼結作業","粉末冶金：焼結作業"]
[null,null,null,null,null,null,null,null,null,null,null,null,null,null,null,null,null,null,null,null,null,null,null,null,null,null,null,null,null,null,null,null,"放電加工：ワイヤ放電加工作業","放電加工：ワイヤ放電加工作業"]
[null,null,null,null,null,null,null,null,null,null,null,null,null,null,null,null,null,null,null,null,null,null,null,null,null,null,null,null,null,null,null,null,"放電加工：数値制御形彫り放電加工作業","放電加工：数値制御形彫り放電加工作業"]
[null,null,null,null,null,null,null,null,null,null,null,null,null,null,null,null,null,null,null,null,null,null,null,null,null,null,null,null,null,null,null,null,"縫製機械整備：縫製機械整備作業","縫製機械整備：縫製機械整備作業"]
[null,null,null,null,null,null,null,null,null,null,null,null,null,null,null,null,null,null,null,null,null,null,null,null,null,null,null,null,null,null,null,null,"防水施工：FRP防水工事作業","防水施工：FRP防水工事作業"]
[null,null,null,null,null,null,null,null,null,null,null,null,null,null,null,null,null,null,null,null,null,null,null,null,null,null,null,null,null,null,null,null,"防水施工：アクリルゴム系塗膜防水工事作業","防水施工：アクリルゴム系塗膜防水工事作業"]
[null,null,null,null,null,null,null,null,null,null,null,null,null,null,null,null,null,null,null,null,null,null,null,null,null,null,null,null,null,null,null,null,"防水施工：アスファルト防水工事作業","防水施工：アスファルト防水工事作業"]
[null,null,null,null,null,null,null,null,null,null,null,null,null,null,null,null,null,null,null,null,null,null,null,null,null,null,null,null,null,null,null,null,"防水施工：ウレタンゴム系塗膜防水工事作業","防水施工：ウレタンゴム系塗膜防水工事作業"]
[null,null,null,null,null,null,null,null,null,null,null,null,null,null,null,null,null,null,null,null,null,null,null,null,null,null,null,null,null,null,null,null,"防水施工：シーリング防水工事作業","防水施工：シーリング防水工事作業"]
[null,null,null,null,null,null,null,null,null,null,null,null,null,null,null,null,null,null,null,null,null,null,null,null,null,null,null,null,null,null,null,null,"防水施工：塩化ビニル系シート防水工事作業","防水施工：塩化ビニル系シート防水工事作業"]
[null,null,null,null,null,null,null,null,null,null,null,null,null,null,null,null,null,null,null,null,null,null,null,null,null,null,null,null,null,null,null,null,"防水施工：改質アスファルトシートトーチ工法防水工事作業","防水施工：改質アスファルトシートトーチ工法防水工事作業"]
[null,null,null,null,null,null,null,null,null,null,null,null,null,null,null,null,null,null,null,null,null,null,null,null,null,null,null,null,null,null,null,null,"防水施工：改質アスファルトシート常温粘着工法防水工事作業","防水施工：改質アスファルトシート常温粘着工法防水工事作業"]
[null,null,null,null,null,null,null,null,null,null,null,null,null,null,null,null,null,null,null,null,null,null,null,null,null,null,null,null,null,null,null,null,"防水施工：合成ゴム系シート防水工事作業","防水施工：合成ゴム系シート防水工事作業"]
[null,null,null,null,null,null,null,null,null,null,null,null,null,null,null,null,null,null,null,null,null,null,null,null,null,null,null,null,null,null,null,null,"油圧装置調整：油圧装置調整作業","油圧装置調整：油圧装置調整作業"]
[null,null,null,null,null,null,null,null,null,null,null,null,null,null,null,null,null,null,null,null,null,null,null,null,null,null,null,null,null,null,null,null,"冷凍空気調和機器施工：冷凍空気調和機器施工作業","冷凍空気調和機器施工：冷凍空気調和機器施工作業"]
[null,null,null,null,null,null,null,null,null,null,null,null,null,null,null,null,null,null,null,null,null,null,null,null,null,null,null,null,null,null,null,null,"和裁：和服製作作業","和裁：和服製作作業"]

{"sheet":"集計用","index":6,"n_rows":5,"n_cols":36,"rows_kept":5,"cut":false,"hidden":true,"merged":[]}
[]
[]
["部門番号","氏名","かな","外字","性別","生年月日","年齢","都道府県番号","都道府県・団体名・推薦者氏名","都道府県内推薦順位","都道府県推薦総数","職種１","職種２","就業地","所属企業名","事業所名","企業全体の従業員数","過去\n推薦\n回数","過去５年\n補選","大臣\n表彰","知事・行政\n機関の局長\n表彰","全国レベルの\n業界団体\n表彰","その他","高度熟練\n技能者","ものづくり\nマイスター","全技連\nマイスター","技能\nグランプリ","五輪国際","五輪全国","職業訓練\n指導員免許","技能検定\n委員","特許・実用新案等","技能検定\n（特級）","技能検定\n（１級）","技能検定\n（２級）","技能検定\n（単一等級）"]
[{"$f":"調書１!E3","v":0},{"$f":"調書１!C6&\"\"","v":""},{"$f":"調書１!C5&\"\"","v":""},{"$f":"調書１!L3&\"\"","v":""},{"$f":"調書１!E5&\"\"","v":""},{"$f":"調書１!C7","v":"00:00:00"},{"$f":"調書１!E7&\"\"","v":""},{"$f":"調書１!B3&\"\"","v":"-"},{"$f":"調書１!C4&\"\"","v":""},{"$f":"調書２!C16&\"\"","v":""},{"$f":"調書２!C15&\"\"","v":""},{"$f":"調書１!F4&\"\"","v":""},{"$f":"調書１!H4&\"\"","v":""},{"$f":"調書１!C14&\"\"","v":""},{"$f":"調書１!C15&\"\"","v":""},{"$f":"調書１!C16&\"\"","v":""},{"$f":"調書１!C17&\"\"","v":""},{"$f":"調書２!B12&\"\"","v":"0"},null,{"$f":"IF(ISTEXT(調書１!D25),\"〇\",\"\")","v":""},{"$f":"IF(ISTEXT(調書１!D26),\"〇\",\"\")","v":""},{"$f":"IF(ISTEXT(調書１!D27),\"〇\",\"\")","v":""},{"$f":"IF(ISTEXT(調書１!D28),\"〇\",\"\")","v":""},{"$f":"IF(ISTEXT(調書１!E34),\"〇\",\"\")","v":""},{"$f":"IF(ISTEXT(調書１!E35),\"〇\",\"\")","v":""},{"$f":"IF(ISTEXT(調書１!E36),\"〇\",\"\")","v":""},{"$f":"IF(ISTEXT(調書１!H38),\"〇\",\"\")","v":""},{"$f":"IF(ISTEXT(調書１!H39),\"〇\",\"\")","v":""},{"$f":"IF(ISTEXT(調書１!H40 ),\"〇\",\"\")","v":""},{"$f":"IF(ISTEXT(調書１!D30),\"〇\",\"\")","v":""},{"$f":"IF(ISTEXT(調書１!D31),\"〇\",\"\")","v":""},{"$f":"IF(ISTEXT(調書１!D32),\"〇\",\"\")","v":""},{"$f":"IF(COUNTIF(調書１!J34:J40,\"特級*\"),\"〇\",\"\")","v":""},{"$f":"IF(COUNTIF(調書１!J34:J40,\"一級*\"),\"〇\",\"\")","v":""},{"$f":"IF(COUNTIF(調書１!J34:J40,\"二級*\"),\"〇\",\"\")","v":""},{"$f":"調書１!AN3","v":0}]
[null,null,null,null,null,null,"自動",null,null,null,null,null,null,null,null,null,null,null,"手打ち"]